[Event "EYCC Girls-U12 2019"]
[Site "Bratislava"]
[Date "2019.08.02"]
[Round "1.16"]
[White "Denic, Hana"]
[Black "Paraschiv, Petronela-Alexandra"]
[Result "1-0"]
[ECO "C17"]
[WhiteElo "1821"]
[BlackElo "1810"]
[Annotator "NA"]
[PlyCount "99"]
[EventDate "2019.08.02"]
[EventType "swiss"]
[EventCountry "SVK"]
[SourceTitle "playchess.com"]
[Source "ChessBase"]
[SourceQuality "1"]
[TimeControl "40/5400+30:1800+30"]

1. e4 {[%emt 0:00:00]} e6 {[%emt 0:00:00]} 2. d4 {[%emt 0:00:06]} d5 {[%emt 0:00:00]} 3. Nc3 {[%emt 0:00:26]} Bb4 {[%emt 0:00:16]} 4. e5 {[%emt 0:00:45]} c5 {[%emt 0:00:42]} 5. Bd2 {[%emt 0:02:29]} Nc6 {[%emt 0:02:23]} 6. Nb5 {[%emt 0:07:15]} Bxd2+ {[%emt 0:02:51]} 7. Qxd2 {[%emt 0:04:43]} cxd4 {[%emt 0:01:25]} 8. Nd6+ {[%emt 0:02:00]} Kf8 {[%emt 0:00:32]} 9. f4 {[%emt 0:02:38]} Nge7 {[%emt 0:07:00]} 10. Bd3 {[%emt 0:03:08]} Qb6 {[%emt 0:04:53]} 11. b3 {[%emt 0:07:19]} Qb4 {[%emt 0:02:13]} 12. Qxb4 {[%emt 0:04:53]} Nxb4 {[%emt 0:00:09]} 13. Nf3 {[%emt 0:02:36]} Nxd3+ {[%emt 0:07:35]} 14. cxd3 {[%emt 0:00:11]} Ng6 {[%emt 0:06:51]} 15. Rc1 {[%emt 0:08:12]} Bd7 {[%emt 0:07:41]} 16. g3 {[%emt 0:03:35]} Bc6 {[%emt 0:05:32]} 17. Nxd4 {[%emt 0:05:13]} Ne7 {[%emt 0:01:01]} 18. g4 {[%emt 0:04:38]} g6 {[%emt 0:04:33]} 19. Rf1 {[%emt 0:02:30]} Nc8 {[%emt 0:04:18]} 20. Nxc6 {[%emt 0:06:13]} Nxd6 {[%emt 0:00:55]} 21. exd6 {[%emt 0:01:09]} bxc6 {[%emt 0:00:24]} 22. Rxc6 {[%emt 0:00:35]} Kg7 {[%emt 0:00:44]} 23. Kd2 {[%emt 0:02:33]} Rhd8 {[%emt 0:00:43]} 24. Rfc1 {[%emt 0:01:30]} Rd7 {[%emt 0:06:28]} 25. Ra6 {[%emt 0:01:43]} Rad8 {[%emt 0:00:42]} 26. Rcc6 {[%emt 0:00:37]} Kf6 {[%emt 0:01:13]} 27. d4 {[%emt 0:03:25]} h6 {[%emt 0:01:33]} 28. b4 {[%emt 0:01:06]} g5 {[%emt 0:03:10]} 29. Ke3 {[%emt 0:01:08]} gxf4+ {[%emt 0:04:26]} 30. Kxf4 {[%emt 0:00:20]} e5+ {[%emt 0:00:23]} 31. dxe5+ {[%emt 0:00:38]} Ke6 {[%emt 0:00:06]} 32. Rc7 {[%emt 0:01:29]} f6 {[%emt 0:01:01]} 33. exf6 {[%emt 0:01:32]} Kxf6 {[%emt 0:00:34]} 34. Rcxa7 {[%emt 0:03:36]} Rxd6 {[%emt 0:00:24]} 35. Ke3 {[%emt 0:02:12]} Ke5 {[%emt 0:00:25]} 36. Re7+ {[%emt 0:00:48]} Kf6 {[%emt 0:00:09]} 37. Rxd6+ {[%emt 0:01:16]} Rxd6 {[%emt 0:00:09]} 38. Re8 {[%emt 0:00:08]} Ra6 {[%emt 0:00:16]} 39. Kd4 {[%emt 0:02:07]} Rxa2 {[%emt 0:01:23]} 40. Kxd5 {[%emt 0:00:00]} Rxh2 {[%emt 0:00:00]} 41. Re4 {[%emt 0:00:45]} h5 {[%emt 0:08:01]} 42. gxh5 {[%emt 0:00:59]} Rxh5+ {[%emt 0:00:06]} 43. Kc6 {[%emt 0:00:20]} Kf5 {[%emt 0:01:02]} 44. Re8 {[%emt 0:01:36]} Rh6+ {[%emt 0:00:25]} 45. Kc5 {[%emt 0:00:33]} Rh1 {[%emt 0:00:34]} 46. b5 {[%emt 0:00:14]} Rc1+ {[%emt 0:00:07]} 47. Kb6 {[%emt 0:00:50]} Rb1 {[%emt 0:00:10]} 48. Ka6 {[%emt 0:00:27]} Ra1+ {[%emt 0:00:09]} 49. Kb7 {[%emt 0:00:06]} Rb1 {[%emt 0:00:05]} 50. b6 {[%emt 0:00:18] Ke4} 1-0

[Event "EYCC Girls-U12 2019"]
[Site "Bratislava"]
[Date "2019.08.02"]
[Round "1.17"]
[White "Sichinava, Mariam"]
[Black "Musabayeva, Diana"]
[Result "0-1"]
[ECO "A05"]
[WhiteElo "1389"]
[BlackElo "1679"]
[Annotator "NA"]
[PlyCount "78"]
[EventDate "2019.08.02"]
[EventType "swiss"]
[EventCountry "SVK"]
[SourceTitle "playchess.com"]
[Source "ChessBase"]
[SourceQuality "1"]
[TimeControl "40/5400+30:1800+30"]

1. Nf3 {[%emt 0:00:00]} Nf6 {[%emt 0:00:00]} 2. g3 {[%emt 0:00:00]} g6 {[%emt 0:02:01]} 3. Bg2 {[%emt 0:00:00]} Bg7 {[%emt 0:00:55]} 4. c4 {[%emt 0:00:00]} c5 {[%emt 0:01:16]} 5. O-O {[%emt 0:00:21]} O-O {[%emt 0:01:02]} 6. d4 {[%emt 0:03:46]} cxd4 {[%emt 0:04:59]} 7. Nxd4 {[%emt 0:00:04]} Nc6 {[%emt 0:06:04]} 8. Nc3 {[%emt 0:06:16]} Qc7 {[%emt 0:20:37]} 9. Ndb5 {[%emt 0:18:25]} Qb8 {[%emt 0:06:49]} 10. Bf4 {[%emt 0:09:37]} d6 {[%emt 0:02:04]} 11. Nxd6 {[%emt 0:25:47]} exd6 {[%emt 0:04:40]} 12. Bxd6 {[%emt 0:00:01]} Rd8 {[%emt 0:00:16]} 13. Bxb8 {[%emt 0:01:12]} Rxd1 {[%emt 0:00:14]} 14. Rfxd1 {[%emt 0:00:10]} Rxb8 {[%emt 0:00:33]} 15. Bxc6 bxc6 {[%emt 0:00:07]} 16. Rd8+ {[%emt 0:03:04]} Bf8 {[%emt 0:00:08]} 17. b4 {[%emt 0:05:21]} Kg7 {[%emt 0:02:57]} 18. a3 {[%emt 0:03:55]} Be7 {[%emt 0:01:33]} 19. Rdd1 {[%emt 0:00:37]} Be6 {[%emt 0:01:32]} 20. c5 {[%emt 0:02:23]} Nd5 {[%emt 0:03:19]} 21. Rac1 {[%emt 0:03:17]} Bf6 {[%emt 0:03:50]} 22. Nxd5 {[%emt 0:01:14]} Bxd5 {[%emt 0:00:06]} 23. Rd2 {[%emt 0:02:25]} a5 {[%emt 0:02:42]} 24. bxa5 {[%emt 0:02:01]} Ra8 {[%emt 0:01:06]} 25. Rd3 {[%emt 0:02:31]} Rxa5 {[%emt 0:03:11]} 26. f3 {[%emt 0:00:18]} Bb2 {[%emt 0:02:11]} 27. Rb1 {[%emt 0:03:55]} Bxa3 {[%emt 0:00:14]} 28. Kg2 {[%emt 0:02:19]} Bxc5 {[%emt 0:01:05]} 29. Rd2 {[%emt 0:01:25]} Be7 {[%emt 0:04:55]} 30. e4 {[%emt 0:00:47]} Ra2 {[%emt 0:00:25]} 31. Rxa2 {[%emt 0:00:25]} Bxa2 {[%emt 0:00:02]} 32. Rb2 {[%emt 0:00:20]} Be6 {[%emt 0:00:57]} 33. Rc2 {[%emt 0:00:17]} c5 {[%emt 0:00:05]} 34. f4 {[%emt 0:00:36]} Bb3 {[%emt 0:00:58]} 35. Rc3 {[%emt 0:00:39]} c4 {[%emt 0:00:07]} 36. e5 {[%emt 0:00:11]} Bb4 {[%emt 0:00:12]} 37. Rc1 {[%emt 0:00:04]} c3 {[%emt 0:00:33]} 38. Kf2 {[%emt 0:00:57]} c2 {[%emt 0:00:16]} 39. Ke2 {[%emt 0:00:30]} Ba3 {[%emt 0:00:34]} 0-1

[Event "EYCC Girls-U12 2019"]
[Site "Bratislava"]
[Date "2019.08.02"]
[Round "1.18"]
[White "Siekanska, Maria"]
[Black "Havelkova, Beata"]
[Result "1-0"]
[ECO "D35"]
[WhiteElo "1561"]
[BlackElo "1316"]
[Annotator "NA"]
[PlyCount "59"]
[EventDate "2019.08.02"]
[EventType "swiss"]
[EventCountry "SVK"]
[SourceTitle "playchess.com"]
[Source "ChessBase"]
[SourceQuality "1"]
[TimeControl "40/5400+30:1800+30"]

1. d4 {[%emt 0:00:00]} d5 {[%emt 0:00:00]} 2. c4 {[%emt 0:00:00]} e6 {[%emt 0:00:00]} 3. Nc3 {[%emt 0:00:00]} Nf6 {[%emt 0:00:00]} 4. cxd5 {[%emt 0:00:00]} exd5 {[%emt 0:00:04]} 5. Bg5 {[%emt 0:00:08]} c6 {[%emt 0:00:21]} 6. e3 {[%emt 0:00:38]} Be7 {[%emt 0:00:17]} 7. Bd3 {[%emt 0:00:14]} Nbd7 {[%emt 0:00:45]} 8. Nge2 {[%emt 0:00:31]} h6 {[%emt 0:00:59]} 9. Bh4 {[%emt 0:00:44]} Nh5 {[%emt 0:01:15]} 10. Bxe7 {[%emt 0:00:09]} Qxe7 {[%emt 0:00:36]} 11. O-O {[%emt 0:01:07]} O-O {[%emt 0:00:44]} 12. Rb1 {[%emt 0:01:54]} Re8 {[%emt 0:04:20]} 13. b4 {[%emt 0:03:52]} a6 {[%emt 0:06:20]} 14. a4 {[%emt 0:01:58]} Nhf6 {[%emt 0:04:43]} 15. Ng3 {[%emt 0:05:00]} Nf8 {[%emt 0:04:44]} 16. Qb3 {[%emt 0:07:51]} Bg4 {[%emt 0:05:41]} 17. Rfe1 {[%emt 0:04:56]} Be6 {[%emt 0:08:06]} 18. Qb2 {[%emt 0:01:40]} Qd6 {[%emt 0:08:01]} 19. Rbd1 {[%emt 0:02:55]} Rab8 {[%emt 0:03:35]} 20. Kh1 {[%emt 0:04:09]} Bd7 {[%emt 0:05:57]} 21. f3 {[%emt 0:04:18]} Ne6 {[%emt 0:08:41]} 22. Bb1 {[%emt 0:03:36]} Rbd8 {[%emt 0:03:13]} 23. e4 {[%emt 0:03:10]} dxe4 {[%emt 0:01:12]} 24. fxe4 {[%emt 0:01:28]} Qc7 {[%emt 0:01:48]} 25. Qc2 {[%emt 0:02:10]} Nf8 {[%emt 0:03:09]} 26. e5 {[%emt 0:01:20]} Ng4 {[%emt 0:01:58]} 27. Nge4 {[%emt 0:03:25]} h5 {[%emt 0:03:24]} 28. Nd6 {[%emt 0:02:49]} Re7 {[%emt 0:01:33]} 29. h3 {[%emt 0:00:40]} Nh6 {[%emt 0:00:13]} 30. Nd5 {[%emt 0:00:31]} 1-0

[Event "EYCC Girls-U12 2019"]
[Site "Bratislava"]
[Date "2019.08.02"]
[Round "1.19"]
[White "Lapushnian, Maya"]
[Black "Putar, Lara"]
[Result "1-0"]
[ECO "B13"]
[WhiteElo "1360"]
[BlackElo "1608"]
[Annotator "NA"]
[PlyCount "161"]
[EventDate "2019.08.02"]
[EventType "swiss"]
[EventCountry "SVK"]
[SourceTitle "playchess.com"]
[Source "ChessBase"]
[SourceQuality "1"]
[TimeControl "40/5400+30:1800+30"]

1. e4 {[%emt 0:00:00]} c6 {[%emt 0:00:00]} 2. d4 {[%emt 0:00:00]} d5 {[%emt 0:00:00]} 3. exd5 {[%emt 0:00:00]} cxd5 {[%emt 0:00:00]} 4. Bd3 {[%emt 0:00:00]} Nc6 {[%emt 0:01:48]} 5. c3 {[%emt 0:00:00]} g6 {[%emt 0:01:46]} 6. Bf4 {[%emt 0:00:24]} Bg7 {[%emt 0:00:45]} 7. Nf3 {[%emt 0:01:21]} Nf6 {[%emt 0:01:54]} 8. O-O {[%emt 0:00:26]} O-O {[%emt 0:01:02]} 9. Nbd2 {[%emt 0:00:59]} Re8 {[%emt 0:06:21]} 10. Nb3 {[%emt 0:06:47]} Qb6 {[%emt 0:04:35]} 11. Re1 {[%emt 0:06:07]} Nh5 {[%emt 0:07:51]} 12. Be3 {[%emt 0:08:17]} Qc7 {[%emt 0:06:35]} 13. Qd2 {[%emt 0:05:21]} Nf6 {[%emt 0:03:39]} 14. Bf4 {[%emt 0:01:11]} Qd8 {[%emt 0:01:46]} 15. h3 {[%emt 0:02:57]} Bd7 {[%emt 0:09:47]} 16. Bh6 {[%emt 0:05:38]} Bh8 {[%emt 0:03:52]} 17. Qg5 {[%emt 0:04:20]} e6 {[%emt 0:11:11]} 18. Ne5 {[%emt 0:19:40]} Nxe5 {[%emt 0:06:16]} 19. dxe5 {[%emt 0:00:24]} Nh5 {[%emt 0:01:22]} 20. Qxd8 {[%emt 0:02:33]} Rexd8 {[%emt 0:00:48]} 21. g4 {[%emt 0:00:43]} Ng7 {[%emt 0:00:42]} 22. Nd4 {[%emt 0:01:38]} Ne8 {[%emt 0:01:30]} 23. Re3 {[%emt 0:04:18]} Nc7 {[%emt 0:02:06]} 24. Rae1 {[%emt 0:00:34]} b5 {[%emt 0:01:16]} 25. Bg5 {[%emt 0:02:04]} Rdc8 {[%emt 0:01:59]} 26. Be7 {[%emt 0:00:45]} a5 {[%emt 0:03:40]} 27. a3 {[%emt 0:01:58]} Rab8 {[%emt 0:02:25]} 28. Bd6 {[%emt 0:00:51]} Rb7 {[%emt 0:00:27]} 29. Rf3 {[%emt 0:01:59]} Ne8 {[%emt 0:01:41]} 30. Be7 {[%emt 0:00:44]} Bg7 {[%emt 0:01:54]} 31. h4 {[%emt 0:03:00]} Bf8 {[%emt 0:01:10]} 32. Bxf8 {[%emt 0:00:11]} Kxf8 {[%emt 0:00:01]} 33. h5 {[%emt 0:00:31]} Kg7 {[%emt 0:00:22]} 34. hxg6 {[%emt 0:01:26]} hxg6 {[%emt 0:01:05]} 35. Kg2 {[%emt 0:00:37]} Rb6 {[%emt 0:01:18]} 36. Nc2 {[%emt 0:01:50]} Bc6 {[%emt 0:02:35]} 37. Nd4 {[%emt 0:03:17]} b4 {[%emt 0:00:58]} 38. Nxc6 {[%emt 0:02:29]} Rcxc6 {[%emt 0:00:19]} 39. cxb4 {[%emt 0:00:09]} axb4 {[%emt 0:00:09]} 40. a4 {[%emt 0:00:00]} Nc7 {[%emt 0:00:00]} 41. Rh1 {[%emt 0:02:03]} Ne8 {[%emt 0:10:33]} 42. Rfh3 {[%emt 0:05:43]} Rc7 {[%emt 0:00:50]} 43. Rh8 {[%emt 0:00:27]} Nf6 {[%emt 0:01:11]} 44. exf6+ {[%emt 0:00:07]} Kxf6 {[%emt 0:00:01]} 45. R8h3 {[%emt 0:03:32]} b3 {[%emt 0:01:17]} 46. Bb5 {[%emt 0:00:51]} Kg5 {[%emt 0:06:10]} 47. Rxb3 {[%emt 0:01:25]} Rcb7 {[%emt 0:00:57]} 48. Kg3 {[%emt 0:02:57]} e5 {[%emt 0:01:48]} 49. Rd1 {[%emt 0:03:36]} d4 {[%emt 0:02:22]} 50. Re1 {[%emt 0:02:01]} f6 {[%emt 0:03:48]} 51. Re4 {[%emt 0:03:16]} Rh7 {[%emt 0:05:22]} 52. f4+ {[%emt 0:00:55]} exf4+ {[%emt 0:00:09]} 53. Rxf4 {[%emt 0:00:05]} Rh3+ {[%emt 0:01:14]} 54. Kxh3 {[%emt 0:00:07]} Kxf4 {[%emt 0:00:04]} 55. Bc4 {[%emt 0:01:54]} Rc6 {[%emt 0:00:34]} 56. Bd3 {[%emt 0:02:27]} g5 {[%emt 0:01:22]} 57. Bf5 {[%emt 0:00:16]} Ra6 {[%emt 0:01:22]} 58. Ra3 {[%emt 0:01:29]} Rb6 {[%emt 0:00:23]} 59. b3 {[%emt 0:00:46]} Rb8 {[%emt 0:00:33]} 60. a5 {[%emt 0:01:23]} Kf3 {[%emt 0:00:15]} 61. b4+ {[%emt 0:00:11]} Kf2 {[%emt 0:00:12]} 62. Ra2+ {[%emt 0:00:54]} Kf3 {[%emt 0:00:11]} 63. Kh2 {[%emt 0:00:09]} Rxb4 {[%emt 0:00:48]} 64. a6 {[%emt 0:00:13]} Rb8 {[%emt 0:00:31]} 65. a7 {[%emt 0:00:10]} Rh8+ {[%emt 0:00:54]} 66. Kg1 {[%emt 0:00:10]} Ra8 {[%emt 0:00:39]} 67. Be6 {[%emt 0:01:13]} Ke4 {[%emt 0:00:43]} 68. Bc8 {[%emt 0:00:49]} Rxc8 {[%emt 0:01:19]} 69. a8=Q+ {[%emt 0:00:06]} Rxa8 {[%emt 0:00:05]} 70. Rxa8 {[%emt 0:00:06]} d3 {[%emt 0:02:36]} 71. Kf2 {[%emt 0:00:19]} d2 {[%emt 0:01:40]} 72. Ke2 {[%emt 0:00:06]} f5 {[%emt 0:00:25]} 73. gxf5 {[%emt 0:00:30]} Kxf5 {[%emt 0:00:05]} 74. Kxd2 {[%emt 0:00:07]} Kg4 {[%emt 0:00:21]} 75. Ra3 {[%emt 0:00:07]} Kh4 {[%emt 0:00:09]} 76. Ke2 {[%emt 0:00:05]} Kg4 {[%emt 0:00:40]} 77. Kf2 {[%emt 0:00:06]} Kh4 {[%emt 0:00:45]} 78. Kg2 {[%emt 0:00:15]} g4 {[%emt 0:02:10]} 79. Ra4 {[%emt 0:00:10]} Kh5 {[%emt 0:00:46]} 80. Kg3 {[%emt 0:00:08]} Kg5 {[%emt 0:00:21]} 81. Ra5+ 1-0

[Event "EYCC Girls-U12 2019"]
[Site "Bratislava"]
[Date "2019.08.02"]
[Round "1.20"]
[White "Ivanova, Dilyana"]
[Black "Kalamoukou, Giolanta"]
[Result "0-1"]
[ECO "B35"]
[WhiteElo "1734"]
[BlackElo "1288"]
[Annotator "NA"]
[PlyCount "88"]
[EventDate "2019.08.02"]
[EventType "swiss"]
[EventCountry "SVK"]
[SourceTitle "playchess.com"]
[Source "ChessBase"]
[SourceQuality "1"]
[TimeControl "40/5400+30:1800+30"]

1. e4 {[%emt 0:00:00]} c5 {[%emt 0:00:00]} 2. Nf3 {[%emt 0:00:00]} Nc6 {[%emt 0:00:00]} 3. d4 {[%emt 0:00:00]} cxd4 {[%emt 0:00:00]} 4. Nxd4 {[%emt 0:00:00]} g6 {[%emt 0:00:00]} 5. Nc3 {[%emt 0:00:19]} Bg7 {[%emt 0:00:00]} 6. Be3 {[%emt 0:00:42]} Nf6 {[%emt 0:00:04]} 7. Bc4 {[%emt 0:00:39]} O-O {[%emt 0:00:18]} 8. O-O {[%emt 0:01:00]} Nxe4 {[%emt 0:02:59]} 9. Nxe4 {[%emt 0:06:24]} d5 {[%emt 0:00:07]} 10. Bxd5 {[%emt 0:03:22]} Qxd5 {[%emt 0:00:14]} 11. Nc3 {[%emt 0:00:50]} Qd7 {[%emt 0:14:32]} 12. Nce2 {[%emt 0:05:16]} Nxd4 {[%emt 0:04:28]} 13. Bxd4 {[%emt 0:07:34]} Qb5 {[%emt 0:08:50]} 14. a4 {[%emt 0:08:10]} Qb4 {[%emt 0:03:21]} 15. Bxg7 {[%emt 0:05:55]} Kxg7 {[%emt 0:00:14]} 16. Qd4+ {[%emt 0:07:03]} Qxd4 {[%emt 0:00:23]} 17. Nxd4 {[%emt 0:00:07]} e5 {[%emt 0:01:36]} 18. Nb5 {[%emt 0:03:08]} Bf5 {[%emt 0:01:45]} 19. c3 {[%emt 0:02:41]} Rfd8 {[%emt 0:02:22]} 20. Rfe1 {[%emt 0:03:18]} a6 {[%emt 0:01:36]} 21. Na3 {[%emt 0:00:45]} f6 {[%emt 0:00:30]} 22. Nc4 {[%emt 0:03:23]} Be6 {[%emt 0:05:39]} 23. Nb6 {[%emt 0:01:27]} Rab8 {[%emt 0:00:51]} 24. a5 {[%emt 0:01:04]} Rd2 {[%emt 0:00:48]} 25. b4 {[%emt 0:05:33]} Rbd8 {[%emt 0:01:05]} 26. Kf1 {[%emt 0:06:16]} Rc2 {[%emt 0:00:35]} 27. Rac1 {[%emt 0:01:02]} Rdd2 {[%emt 0:01:44]} 28. Rxc2 {[%emt 0:00:28]} Rxc2 {[%emt 0:00:07]} 29. Re3 {[%emt 0:00:13]} Rc1+ {[%emt 0:01:17]} 30. Ke2 {[%emt 0:00:31]} Rc2+ {[%emt 0:01:09]} 31. Ke1 {[%emt 0:03:17]} Rc1+ {[%emt 0:01:39]} 32. Ke2 {[%emt 0:04:19]} Rc2+ {[%emt 0:00:12]} 33. Kf3 {[%emt 0:00:33]} h5 {[%emt 0:00:20]} 34. h4 {[%emt 0:04:01]} Kh6 {[%emt 0:03:26]} 35. Kg3 {[%emt 0:03:04]} g5 {[%emt 0:02:06]} 36. Rf3 {[%emt 0:03:39]} Kg6 {[%emt 0:01:07]} 37. hxg5 {[%emt 0:04:18]} Kxg5 38. Re3 h4+ {[%emt 0:03:35]} 39. Kf3 {[%emt 0:02:17]} Bg4+ {[%emt 0:00:24]} 40. Ke4 {[%emt 0:00:12]} Rxf2 {[%emt 0:00:25]} 41. g3 {[%emt 0:03:16]} h3 {[%emt 0:00:33]} 42. Re1 {[%emt 0:00:47]} h2 {[%emt 0:00:08]} 43. Ke3 {[%emt 0:00:46]} Re2+ {[%emt 0:00:18]} 44. Rxe2 {[%emt 0:00:08]} Bxe2 {[%emt 0:00:07] Kd4} 0-1

[Event "EYCC Girls-U12 2019"]
[Site "Bratislava"]
[Date "2019.08.02"]
[Round "1.21"]
[White "Muradyan, Anahit"]
[Black "Fileru, Maria"]
[Result "1-0"]
[ECO "E06"]
[WhiteElo "1353"]
[BlackElo "1602"]
[Annotator "NA"]
[PlyCount "85"]
[EventDate "2019.08.02"]
[EventType "swiss"]
[EventCountry "SVK"]
[SourceTitle "playchess.com"]
[Source "ChessBase"]
[SourceQuality "1"]
[TimeControl "40/5400+30:1800+30"]

1. d4 {[%emt 0:00:00]} d5 {[%emt 0:00:00]} 2. c4 {[%emt 0:00:00]} e6 {[%emt 0:00:00]} 3. Nf3 {[%emt 0:00:00]} Nf6 {[%emt 0:00:00]} 4. g3 {[%emt 0:00:06]} Be7 {[%emt 0:00:28]} 5. Bg2 {[%emt 0:00:13]} O-O {[%emt 0:00:33]} 6. O-O {[%emt 0:00:15]} b6 {[%emt 0:00:46]} 7. Qc2 {[%emt 0:01:32]} Bb7 {[%emt 0:01:35]} 8. Nbd2 {[%emt 0:05:07]} c5 {[%emt 0:07:13]} 9. dxc5 {[%emt 0:06:28]} bxc5 {[%emt 0:02:33]} 10. cxd5 {[%emt 0:11:36]} exd5 {[%emt 0:02:34]} 11. Nb3 {[%emt 0:03:14]} Qb6 {[%emt 0:03:36]} 12. Bg5 {[%emt 0:08:53]} Nbd7 {[%emt 0:01:53]} 13. Rac1 {[%emt 0:04:39]} Rac8 {[%emt 0:00:48]} 14. Rfd1 {[%emt 0:04:14]} h6 {[%emt 0:04:23]} 15. Bd2 {[%emt 0:05:56]} Ne4 {[%emt 0:03:33]} 16. Be1 {[%emt 0:08:57]} Rfd8 {[%emt 0:08:40]} 17. Ba5 {[%emt 0:01:28]} Qe6 {[%emt 0:01:30]} 18. Bxd8 {[%emt 0:00:35]} Rxd8 {[%emt 0:00:03]} 19. Nbd2 {[%emt 0:03:06]} Nef6 {[%emt 0:00:11]} 20. Nf1 {[%emt 0:00:42]} d4 {[%emt 0:03:15]} 21. Nxd4 {[%emt 0:01:57]} Qb6 {[%emt 0:03:09]} 22. Bxb7 {[%emt 0:01:19]} Qxb7 {[%emt 0:00:02]} 23. Nf5 {[%emt 0:00:36]} Bf8 {[%emt 0:00:36]} 24. Nd6 {[%emt 0:01:34]} Qc6 {[%emt 0:00:11]} 25. Nc4 {[%emt 0:00:37]} Nd5 {[%emt 0:00:17]} 26. a3 {[%emt 0:03:23]} Re8 {[%emt 0:02:09]} 27. Nfe3 {[%emt 0:02:07]} N7f6 {[%emt 0:00:39]} 28. Nxd5 {[%emt 0:00:21]} Nxd5 {[%emt 0:00:02]} 29. Qf5 {[%emt 0:01:50]} Nf6 {[%emt 0:04:12]} 30. Qf3 {[%emt 0:02:48]} Qa4 {[%emt 0:01:49]} 31. Ne3 {[%emt 0:01:42]} Qb5 {[%emt 0:01:03]} 32. Rc2 {[%emt 0:02:22]} Ne4 {[%emt 0:02:01]} 33. Nd5 {[%emt 0:02:58]} Qa4 {[%emt 0:01:08]} 34. Qd3 {[%emt 0:01:48]} Ng5 {[%emt 0:01:53]} 35. Rc4 {[%emt 0:02:02]} Qb5 {[%emt 0:00:43]} 36. Nf4 {[%emt 0:03:00]} Qxb2 {[%emt 0:01:20]} 37. h4 {[%emt 0:01:45]} Nh7 {[%emt 0:00:02]} 38. Qc3 {[%emt 0:01:00]} Qb7 {[%emt 0:00:49]} 39. Qd3 {[%emt 0:01:05]} Nf6 {[%emt 0:00:29]} 40. Nd5 {[%emt 0:00:00]} Nd7 {[%emt 0:00:00]} 41. Re4 {[%emt 0:03:46]} Rb8 {[%emt 0:02:52]} 42. Ne7+ {[%emt 0:00:25]} Bxe7 {[%emt 0:00:28]} 43. Rxe7 {[%emt 0:00:04]} 1-0

[Event "EYCC Girls-U12 2019"]
[Site "Bratislava"]
[Date "2019.08.02"]
[Round "1.22"]
[White "Komissarova, Soigina"]
[Black "Novikova, Daria"]
[Result "1/2-1/2"]
[ECO "D10"]
[WhiteElo "1663"]
[BlackElo "1428"]
[Annotator "NA"]
[PlyCount "111"]
[EventDate "2019.08.02"]
[EventType "swiss"]
[EventCountry "SVK"]
[SourceTitle "playchess.com"]
[Source "ChessBase"]
[SourceQuality "1"]
[TimeControl "40/5400+30:1800+30"]

1. d4 {[%emt 0:00:00]} d5 {[%emt 0:00:00]} 2. c4 {[%emt 0:00:00]} c6 {[%emt 0:00:00]} 3. cxd5 {[%emt 0:00:06]} cxd5 {[%emt 0:00:00]} 4. Nc3 {[%emt 0:00:30]} Nf6 {[%emt 0:00:31]} 5. Bf4 {[%emt 0:00:46]} a6 {[%emt 0:00:12]} 6. e3 {[%emt 0:00:51]} Nc6 {[%emt 0:00:20]} 7. Bd3 {[%emt 0:00:35]} e6 {[%emt 0:01:27]} 8. Nge2 {[%emt 0:03:34]} Bd6 {[%emt 0:00:37]} 9. Rc1 {[%emt 0:01:35]} O-O {[%emt 0:00:22]} 10. O-O {[%emt 0:00:51]} Bxf4 {[%emt 0:01:26]} 11. Nxf4 {[%emt 0:00:52]} Qd6 {[%emt 0:00:18]} 12. Bb1 {[%emt 0:02:24]} Nxd4 {[%emt 0:04:12]} 13. Qxd4 {[%emt 0:01:18]} e5 {[%emt 0:00:09]} 14. Qd3 {[%emt 0:01:03]} exf4 {[%emt 0:00:24]} 15. exf4 {[%emt 0:00:19]} g6 {[%emt 0:03:38]} 16. Qd4 {[%emt 0:01:57]} b5 {[%emt 0:03:59]} 17. Rfd1 {[%emt 0:01:56]} Rd8 {[%emt 0:01:17]} 18. Ne4 {[%emt 0:15:26]} Nxe4 {[%emt 0:02:28]} 19. Bxe4 {[%emt 0:00:13]} Qxf4 {[%emt 0:03:08]} 20. g3 {[%emt 0:23:48]} Qd6 {[%emt 0:07:24]} 21. Bxd5 {[%emt 0:03:11]} Be6 {[%emt 0:01:52]} 22. Bxa8 {[%emt 0:17:47]} Qxd4 {[%emt 0:00:13]} 23. Rxd4 {[%emt 0:00:07]} Rxd4 {[%emt 0:00:07]} 24. Bb7 {[%emt 0:03:10]} a5 {[%emt 0:02:05]} 25. b3 {[%emt 0:05:27]} Rd2 {[%emt 0:01:54]} 26. a4 {[%emt 0:00:34]} b4 {[%emt 0:01:26]} 27. Rc5 {[%emt 0:06:32]} Bh3 {[%emt 0:00:29]} 28. f4 {[%emt 0:00:43]} Rd1+ {[%emt 0:00:49]} 29. Kf2 {[%emt 0:00:13]} Rd2+ {[%emt 0:00:38]} 30. Ke3 {[%emt 0:01:37]} Rb2 {[%emt 0:00:36]} 31. Bd5 {[%emt 0:01:01]} Be6 {[%emt 0:00:40]} 32. Bxe6 {[%emt 0:00:55]} fxe6 {[%emt 0:00:10]} 33. Rxa5 {[%emt 0:00:04]} Rxb3+ {[%emt 0:00:10]} 34. Kd4 {[%emt 0:00:11]} Rb1 {[%emt 0:02:19]} 35. Rb5 {[%emt 0:00:16]} Rb2 {[%emt 0:01:23]} 36. Kc4 {[%emt 0:00:13]} Rxh2 {[%emt 0:00:11]} 37. Rxb4 {[%emt 0:00:11]} Ra2 {[%emt 0:00:35]} 38. Kb5 {[%emt 0:00:10]} Ra3 {[%emt 0:01:05]} 39. g4 {[%emt 0:00:11]} h6 {[%emt 0:01:09]} 40. a5 {[%emt 0:00:00]} h5 {[%emt 0:00:00]} 41. gxh5 {[%emt 0:00:37]} gxh5 {[%emt 0:02:14]} 42. Kb6 {[%emt 0:01:12]} h4 {[%emt 0:01:23]} 43. a6 {[%emt 0:00:13]} h3 {[%emt 0:00:19]} 44. Rb2 {[%emt 0:00:04]} Kf7 {[%emt 0:00:34]} 45. a7 {[%emt 0:00:19]} Kf6 {[%emt 0:00:11]} 46. Kb7 {[%emt 0:00:57]} Kf5 {[%emt 0:00:10]} 47. a8=Q {[%emt 0:03:41]} Rxa8 {[%emt 0:00:10]} 48. Kxa8 {[%emt 0:00:11]} Kxf4 {[%emt 0:00:06]} 49. Rb3 {[%emt 0:01:31]} Kg4 {[%emt 0:00:26]} 50. Kb7 {[%emt 0:00:48]} h2 {[%emt 0:00:37]} 51. Rb1 {[%emt 0:00:05]} e5 {[%emt 0:00:24]} 52. Kc6 {[%emt 0:00:14]} e4 {[%emt 0:00:09]} 53. Kd5 {[%emt 0:00:07]} Kf3 {[%emt 0:03:17]} 54. Rh1 {[%emt 0:00:57]} Kg2 {[%emt 0:00:41]} 55. Rxh2+ {[%emt 0:00:14]} Kxh2 {[%emt 0:00:11]} 56. Kxe4 {[%emt 0:00:02]} 1/2-1/2